bitfinex-derivatives/quotes_BTCF0:USTF0_20251030
["timestamp","ask_amount","ask_price","bid_price","bid_amount"]
[1761849674928,1.70888621,107130.0,107120.0,0.003]
[1761849675130,1.09386724,107130.0,107120.0,0.003]
[1761849675327,1.65666724,107130.0,107120.0,0.003]
[1761849675528,1.09386724,107130.0,107120.0,0.003]
[1761849675733,1.68386724,107130.0,107120.0,0.003]
[1761849675930,1.65386724,107130.0,107120.0,0.003]
[1761849676236,1.66481649,107130.0,107100.0,0.01349]
[1761849676428,0.24538763,107110.0,107100.0,0.01349]
[1761849676625,0.36813681,107110.0,107100.0,0.01349]
[1761849676822,0.39813681,107110.0,107090.0,0.3608]
[1761849677022,0.57122763,107100.0,107090.0,0.40636]
[1761849677231,0.38573594,107120.0,107110.0,0.0224]
[1761849677430,0.70848688,107120.0,107110.0,0.04556]
[1761849677631,1.00943094,107120.0,107110.0,0.04556]
[1761849677937,1.06943094,107120.0,107110.0,0.04556]
[1761849678133,1.09436688,107120.0,107110.0,0.04556]
[1761849678334,1.00947094,107120.0,107110.0,0.04556]
[1761849678527,0.64863094,107120.0,107110.0,0.04856]
[1761849678837,0.64863094,107120.0,107110.0,0.05056]
[1761849679232,1.00943094,107120.0,107110.0,0.05056]
[1761849679431,1.03436688,107120.0,107110.0,0.05056]
[1761849679939,1.47344549,107120.0,107110.0,0.005]
[1761849680232,1.89344549,107120.0,107110.0,0.005]
[1761849680826,1.89344549,107120.0,107090.0,0.3608]
[1761849680827,2.13883312,107120.0,107080.0,0.12240466]
[1761849681041,0.00186,107070.0,107060.0,0.05891]
[1761849681343,1.33584763,107070.0,107060.0,0.05891]
[1761849681536,0.00186,107060.0,107050.0,0.06467592]
[1761849681734,0.65804763,107060.0,107050.0,0.06467592]
[1761849682130,0.66890606,107060.0,107050.0,0.06467592]
[1761849682435,0.79890606,107060.0,107050.0,0.02120592]
[1761849682629,0.87620636,107060.0,107050.0,0.02120592]
[1761849682833,0.87340636,107060.0,107050.0,0.02320592]
[1761849683034,0.87340636,107060.0,107050.0,0.02620592]
[1761849683338,0.76885546,107060.0,107050.0,0.02620592]
[1761849683541,0.66890606,107060.0,107050.0,0.02620592]
[1761849683739,0.69178536,107060.0,107050.0,0.02620592]
[1761849683944,0.92178536,107060.0,107050.0,0.02620592]
[1761849684242,0.98586606,107060.0,107050.0,0.06967592]
[1761849684636,0.39351843,107060.0,107050.0,0.06967592]
[1761849684842,0.72051843,107060.0,107050.0,0.06967592]
[1761849685036,0.70051843,107060.0,107050.0,0.06967592]
[1761849685236,0.72051843,107060.0,107050.0,0.06967592]
[1761849686637,0.71865843,107060.0,107050.0,0.06967592]
[1761849687037,0.69865843,107060.0,107050.0,0.06967592]
[1761849687541,0.32692,107060.0,107050.0,0.06967592]
[1761849687838,0.6878,107070.0,107060.0,0.05612]
[1761849688147,0.70966,107070.0,107060.0,0.05612]
[1761849688732,0.70070301,107070.0,107060.0,0.05612]
[1761849688931,0.79699686,107070.0,107060.0,0.05612]
[1761849689139,0.96601064,107070.0,107060.0,0.05612]
[1761849689343,0.72062301,107070.0,107060.0,0.05612]
[1761849689546,0.70062301,107070.0,107060.0,0.05712]
[1761849689734,0.72062301,107070.0,107060.0,0.05712]
[1761849690038,0.39370301,107070.0,107060.0,0.05712]
[1761849690245,0.39184301,107070.0,107060.0,0.05712]
[1761849690434,0.37184301,107070.0,107060.0,0.65712]
[1761849690742,0.3608,107080.0,107070.0,0.04347]
[1761849690940,0.3608,107090.0,107080.0,0.04347]
[1761849690941,0.3737715,107090.0,107080.0,0.04347]
[1761849691250,0.7206515,107090.0,107080.0,0.05612]
[1761849691545,0.7006515,107090.0,107080.0,0.05612]
[1761849692037,0.7026515,107090.0,107080.0,0.05612]
[1761849692346,0.7226515,107090.0,107080.0,0.05612]
[1761849692738,1.18278943,107090.0,107080.0,0.01265]
[1761849692938,1.08284003,107090.0,107080.0,0.05612]
[1761849693745,1.08184003,107090.0,107080.0,0.05612]
[1761849694844,1.08484003,107090.0,107080.0,0.05612]
[1761849695246,0.00186,107070.0,107060.0,0.05612]
[1761849695845,0.36266,107080.0,107070.0,0.04347]
[1761849696040,0.36173,107080.0,107070.0,0.04347]
[1761849696232,0.7007915,107090.0,107070.0,0.04347]
[1761849696233,0.3729115,107090.0,107070.0,0.04347]
[1761849696438,0.7214115,107090.0,107080.0,0.05612]
[1761849696639,0.7204115,107090.0,107080.0,0.05612]
[1761849697240,0.7004115,107090.0,107080.0,0.05612]
[1761849697446,0.7204115,107090.0,107080.0,0.05612]
[1761849697939,0.7214115,107090.0,107080.0,0.05612]
[1761849698742,1.08160003,107090.0,107080.0,0.05612]
[1761849698940,0.00186,107080.0,107070.0,0.04447]
[1761849699138,0.74284853,107080.0,107070.0,0.04447]
[1761849699447,0.77284853,107080.0,107070.0,0.04347]
[1761849699840,0.76284853,107080.0,107070.0,0.04347]
[1761849700348,0.76284853,107080.0,107070.0,0.04447]
[1761849700543,1.08932853,107080.0,107070.0,0.04447]
[1761849700841,0.41266,107080.0,107070.0,0.001]
[1761849701046,1.09960853,107080.0,107070.0,0.02257]
[1761849701346,1.12960853,107080.0,107070.0,0.001]
[1761849701737,1.15250083,107080.0,107070.0,0.001]
[1761849701939,1.12250083,107080.0,107070.0,0.001]
[1761849702149,1.24250083,107080.0,107070.0,0.001]
[1761849702540,1.34245023,107080.0,107070.0,0.001]
[1761849703041,1.46245023,107080.0,107070.0,0.001]
[1761849703246,1.54245023,107080.0,107070.0,0.001]
[1761849703641,2.02245023,107080.0,107070.0,0.001]
[1761849703842,1.63738822,107080.0,107070.0,0.001]
[1761849704043,2.04738822,107080.0,107070.0,0.001]
[1761849704242,2.04838822,107080.0,107070.0,0.001]
[1761849704443,0.00186,107060.0,107050.0,0.02120592]
[1761849704646,1.72024853,107060.0,107050.0,0.02120592]
[1761849704846,1.90314584,107060.0,107050.0,0.02120592]
[1761849705043,2.33314584,107060.0,107050.0,0.02120592]
[1761849705548,0.00186,107030.0,107020.0,1.51415]
[1761849705850,0.68926,107040.0,107030.0,0.04347]
[1761849706145,0.36266,107040.0,107030.0,0.04347]
[1761849706352,0.6893,107040.0,107030.0,0.04347]
[1761849706846,0.7093,107040.0,107030.0,0.04347]
[1761849707046,1.06948853,107040.0,107030.0,0.04547]
[1761849707248,1.06948853,107040.0,107030.0,0.003]
[1761849707750,0.00186,107030.0,107020.0,1.5008]
[1761849707959,1.48668107,107030.0,107020.0,0.0008]
[1761849708144,1.08575004,107030.0,107020.0,0.0008]
[1761849708447,1.08575004,107030.0,107020.0,1.5008]
[1761849708648,1.47575004,107030.0,107020.0,1.5008]
[1761849708852,1.23979461,107030.0,107020.0,1.5008]
[1761849709154,1.56647461,107030.0,107020.0,1.5008]
[1761849709844,1.42647461,107030.0,107020.0,1.5008]
[1761849710044,1.55652521,107030.0,107020.0,1.5008]
[1761849710248,1.55652521,107030.0,107020.0,1.51345]
[1761849710749,1.55648521,107030.0,107020.0,1.5008]
[1761849711251,1.40747639,107030.0,107020.0,1.5008]
[1761849711453,1.40751639,107030.0,107020.0,1.51388]
[1761849711644,1.38461488,107030.0,107020.0,1.51388]
[1761849711843,1.33757749,107030.0,107020.0,1.51388]
[1761849712551,0.00093,106990.0,106980.0,0.37345]
[1761849712748,0.00186,106990.0,106980.0,0.7439]
[1761849712948,0.36204853,107000.0,106990.0,0.04389]
[1761849713149,0.02186,107000.0,106990.0,0.04389]
[1761849713344,0.02186,107000.0,106990.0,0.64389]
[1761849713546,0.00186,107000.0,106990.0,0.64389]
[1761849714349,0.00186,107010.0,107000.0,0.05697]
[1761849714552,0.36266,107020.0,107010.0,0.04389]
[1761849714954,0.38266,107020.0,107010.0,0.04389]
[1761849715760,0.38266,107020.0,107010.0,0.04489]
[1761849716256,0.38266,107020.0,107010.0,0.37145]
[1761849716448,0.38266,107020.0,107010.0,0.37345]
[1761849716648,0.36266,107020.0,107010.0,0.37345]
[1761849716848,0.38266,107020.0,107010.0,0.37345]
[1761849717049,0.36173,107020.0,107010.0,0.37345]
[1761849717349,0.3608,107020.0,107010.0,0.37345]
[1761849717549,0.38266,107020.0,107010.0,0.37345]
[1761849718250,0.38266,107020.0,107010.0,0.37337]
[1761849718450,0.44266,107020.0,107010.0,0.37333]
[1761849718646,0.38266,107020.0,107010.0,0.37333]
[1761849719052,0.74284853,107020.0,107010.0,0.37333]
[1761849719252,0.38266,107020.0,107010.0,0.37333]
[1761849719451,0.36266,107020.0,107010.0,0.37333]
[1761849719656,0.38266,107020.0,107010.0,0.37333]
[1761849720161,0.38173,107020.0,107010.0,0.37333]
[1761849720357,0.3608,107020.0,107010.0,0.37333]
[1761849720553,0.44782635,107030.0,107020.0,0.05697]
[1761849720859,0.46782635,107030.0,107020.0,0.05697]
[1761849721054,0.44596635,107030.0,107020.0,0.05697]
[1761849721360,0.37187118,107030.0,107020.0,0.05697]
[1761849721555,0.3608,107040.0,107030.0,0.04389]
[1761849721751,0.3608,107040.0,107030.0,0.37029]
[1761849722148,0.3608,107050.0,107030.0,0.35097]
[1761849722347,0.3608,107050.0,107040.0,0.05697]
[1761849722752,0.3716985,107050.0,107040.0,0.05697]
[1761849723153,0.3735585,107050.0,107040.0,0.05697]
[1761849723356,0.3716985,107050.0,107040.0,0.05697]
[1761849724065,0.0108985,107050.0,107040.0,0.05697]
[1761849724262,0.4364205,107060.0,107050.0,0.04389]
[1761849724457,0.4564205,107060.0,107050.0,0.37025]
[1761849725157,0.4364205,107060.0,107050.0,0.37025]
[1761849725354,0.4574205,107060.0,107050.0,0.37025]
[1761849725555,0.44643679,107060.0,107050.0,0.37025]
[1761849725762,0.44636679,107060.0,107050.0,0.37025]
[1761849726262,0.44729679,107060.0,107050.0,0.37025]
[1761849726471,0.37353629,107060.0,107050.0,0.37025]
[1761849726768,0.37260629,107060.0,107050.0,0.37025]
[1761849726959,0.37167629,107060.0,107050.0,0.37025]
[1761849727364,0.01087629,107060.0,107050.0,0.73043853]
[1761849727556,0.3608,107070.0,107050.0,0.73043853]
[1761849727865,0.3608,107070.0,107060.0,0.05697]
[1761849728257,0.3608,107070.0,107060.0,0.05977]
[1761849728564,0.3608,107070.0,107060.0,0.05697]
[1761849729370,0.36266,107070.0,107060.0,0.05697]
[1761849729868,0.37374589,107090.0,107080.0,0.04389]
[1761849730168,0.37281589,107090.0,107080.0,0.38313]
[1761849730866,0.37188589,107090.0,107080.0,0.38313]
[1761849731063,0.01508589,107090.0,107080.0,0.74673]
[1761849731263,0.01508589,107090.0,107080.0,1.10691853]
[1761849731564,0.006,107090.0,107080.0,1.20032043]
[1761849731774,0.006,107090.0,107080.0,0.74673]
[1761849732158,0.006,107090.0,107080.0,1.20032033]
[1761849732357,0.3608,107110.0,107100.0,0.05697]
[1761849732669,0.3739074,107110.0,107100.0,0.38305]
[1761849732860,0.3720474,107110.0,107100.0,0.38305]
[1761849733062,0.0112474,107110.0,107100.0,0.74385]
[1761849733261,0.68874,107130.0,107120.0,0.05697]
[1761849733572,0.59373432,107130.0,107120.0,0.05697]
[1761849733761,0.37377487,107130.0,107120.0,0.05697]
[1761849734067,0.39377487,107130.0,107120.0,0.05697]
[1761849735170,0.39777487,107130.0,107120.0,0.05697]
[1761849737067,0.39777487,107130.0,107120.0,0.38297]
[1761849737068,0.48777487,107130.0,107120.0,0.38297]
[1761849737278,0.8479634,107130.0,107120.0,0.01308]
[1761849737460,0.00093,107110.0,107100.0,0.0358]
[1761849737666,0.38266,107110.0,107100.0,0.38401]
[1761849737972,0.36266,107110.0,107100.0,0.38401]
[1761849738168,0.38266,107110.0,107100.0,0.38401]
[1761849738566,0.36266,107110.0,107100.0,0.05913]
[1761849738767,0.38266,107110.0,107100.0,0.06013]
[1761849739175,0.54266,107110.0,107100.0,0.06013]
[1761849739471,1.22872853,107110.0,107100.0,0.002]
[1761849739672,1.09872853,107110.0,107100.0,0.06071]
[1761849739972,1.06872853,107110.0,107100.0,0.06071]
[1761849740472,0.79854,107110.0,107100.0,0.06071]
[1761849740670,0.70854,107110.0,107100.0,0.002]
[1761849740873,1.49872853,107110.0,107100.0,0.002]
[1761849741060,1.92152853,107110.0,107100.0,0.002]
[1761849741266,1.91872853,107110.0,107100.0,0.002]
[1761849741467,1.92152853,107110.0,107100.0,0.002]
[1761849742073,0.00093,107070.0,107060.0,0.41716]
[1761849742270,0.00186,107070.0,107060.0,0.38216]
[1761849743378,0.00186,107070.0,107060.0,0.05636]
[1761849743567,0.01241436,107070.0,107060.0,0.05636]
[1761849743968,0.03241436,107070.0,107060.0,0.05636]
[1761849744168,0.03241436,107070.0,107060.0,0.06336]
[1761849744475,0.03241436,107070.0,107060.0,0.06736]
[1761849744862,0.39321436,107070.0,107060.0,0.06536]
[1761849745066,0.39321436,107070.0,107060.0,0.06436]
[1761849745578,1.07912289,107070.0,107060.0,0.02108]
[1761849745877,0.78893436,107070.0,107060.0,0.008]
[1761849746078,0.78893436,107070.0,107060.0,0.005]
[1761849746576,0.78893436,107070.0,107060.0,0.01817]
[1761849746968,0.71893436,107070.0,107060.0,0.01317]
[1761849747176,0.71893436,107070.0,107060.0,0.01417]
[1761849747370,0.81893436,107070.0,107060.0,0.01417]
[1761849747576,0.71993436,107070.0,107060.0,0.01417]
[1761849747772,0.84993436,107070.0,107060.0,0.01417]
[1761849748467,0.85093436,107070.0,107060.0,0.01317]
[1761849749072,0.00093,107050.0,107040.0,0.39583]
[1761849749271,0.00186,107050.0,107040.0,0.41774]
[1761849749576,0.00186,107050.0,107040.0,0.05694]
[1761849749973,0.38266,107050.0,107040.0,0.05694]
[1761849750173,0.36266,107050.0,107040.0,0.05694]
[1761849750370,0.00093,107050.0,107040.0,0.05694]
[1761849750775,0.00093,107050.0,107040.0,0.05994]
[1761849751173,0.3608,107060.0,107040.0,0.03957]
[1761849751375,0.37321436,107070.0,107060.0,0.05645]
[1761849751575,0.69885436,107070.0,107060.0,0.05645]
[1761849751769,0.71885436,107070.0,107060.0,0.05645]
[1761849752886,1.03443478,107070.0,107060.0,0.01317]
[1761849753072,1.0570858,107070.0,107060.0,0.05645]
[1761849753380,1.0170858,107070.0,107060.0,0.05645]
[1761849753777,1.0190858,107070.0,107060.0,0.05645]
[1761849754584,0.6634458,107070.0,107060.0,0.05645]
[1761849754778,0.96627478,107070.0,107060.0,0.05645]
[1761849754971,0.98893174,107070.0,107060.0,0.05645]
[1761849755280,0.72335132,107070.0,107060.0,0.05645]
[1761849755678,0.70069436,107070.0,107060.0,0.05645]
[1761849756282,0.01255436,107070.0,107060.0,0.05645]
[1761849757079,0.01155436,107070.0,107060.0,0.05745]
[1761849757281,0.01055436,107070.0,107060.0,0.05745]
[1761849757484,0.76231473,107080.0,107070.0,0.04328]
[1761849757684,0.78231473,107080.0,107070.0,0.04328]
[1761849758079,0.76231473,107080.0,107070.0,0.04328]
[1761849758288,0.45679473,107080.0,107070.0,0.04328]
[1761849758585,0.43679473,107080.0,107070.0,0.04328]
[1761849758882,0.3608,107090.0,107070.0,0.96872]
[1761849759081,0.36173,107090.0,107080.0,0.05645]
[1761849759282,0.62824042,107090.0,107080.0,0.05645]
[1761849760482,0.62924042,107090.0,107080.0,0.05645]
[1761849760986,0.63024042,107090.0,107080.0,0.05645]
[1761849761191,0.65291025,107090.0,107080.0,0.05645]
[1761849761383,0.66344252,107090.0,107080.0,0.05645]
[1761849763585,0.66344252,107090.0,107080.0,0.03454]
[1761849763891,0.00186,107080.0,107070.0,0.05645]
[1761849764081,0.62824042,107080.0,107070.0,0.05645]
[1761849764387,0.38266,107080.0,107070.0,0.05645]
[1761849765185,0.40534967,107080.0,107070.0,0.05645]
[1761849765790,0.43534967,107080.0,107070.0,0.05645]
[1761849765988,0.41266,107080.0,107070.0,0.05745]
[1761849766184,0.43536251,107080.0,107070.0,0.05745]
[1761849766580,0.41266,107080.0,107070.0,0.05745]
[1761849767083,0.43538922,107080.0,107070.0,0.05745]
[1761849767487,0.65096964,107080.0,107070.0,0.05745]
[1761849768089,0.38538922,107080.0,107070.0,0.05745]
[1761849768284,0.40538922,107080.0,107070.0,0.05745]
[1761849768784,0.38445922,107080.0,107070.0,0.05745]
[1761849769486,0.04365922,107080.0,107070.0,0.05745]
[1761849769686,0.40538922,107080.0,107070.0,0.05745]
[1761849770387,0.65096964,107080.0,107070.0,0.05745]
[1761849770891,0.40538922,107080.0,107070.0,0.05745]
[1761849772194,0.73074922,107080.0,107070.0,0.05745]
[1761849772780,0.97632964,107080.0,107070.0,0.05745]
[1761849773285,1.00632964,107080.0,107070.0,0.03554]
[1761849773992,1.00632964,107080.0,107070.0,0.05709]
[1761849773993,0.76074922,107080.0,107070.0,0.05709]
[1761849774887,1.00632964,107080.0,107070.0,0.05709]
[1761849775796,1.11632964,107080.0,107070.0,0.03554]
[1761849776194,1.11632964,107080.0,107070.0,0.01417]
[1761849776393,1.11632964,107080.0,107070.0,0.001]
[1761849777089,1.11632964,107080.0,107070.0,0.05978]
[1761849777090,0.82074922,107080.0,107070.0,0.05978]
[1761849777294,1.10632964,107080.0,107070.0,0.05978]
[1761849779494,1.2536353,107080.0,107070.0,0.05978]
[1761849779888,1.2136353,107080.0,107070.0,0.05978]
[1761849780396,0.92719226,107080.0,107070.0,0.05978]
[1761849781197,1.1236353,107080.0,107070.0,0.05978]
[1761849782497,1.1536353,107080.0,107070.0,0.05978]
[1761849783090,1.1536353,107080.0,107070.0,0.001]
[1761849783390,1.1536353,107080.0,107070.0,0.05978]
[1761849784398,1.1536353,107080.0,107070.0,0.03823]
[1761849785197,1.2136353,107080.0,107070.0,0.03823]
[1761849785387,1.1036353,107080.0,107070.0,0.001]
[1761849785596,0.00186,107060.0,107050.0,0.02120592]
[1761849785789,1.60170608,107060.0,107050.0,0.02120592]
[1761849785995,0.68802,107060.0,107050.0,0.27642896]
[1761849786187,0.58189464,107060.0,107050.0,0.27642896]
[1761849786390,0.60189464,107060.0,107050.0,0.07998592]
[1761849786586,0.60189464,107060.0,107050.0,0.08298592]
[1761849786996,1.12129286,107060.0,107050.0,0.02420592]
[1761849787185,0.90134346,107060.0,107050.0,0.03514592]
[1761849787390,1.07134346,107060.0,107050.0,0.05843592]
[1761849787597,1.07134346,107060.0,107050.0,0.02520592]
[1761849788390,1.07134346,107060.0,107050.0,0.02220592]
[1761849789193,1.50134346,107060.0,107050.0,0.02220592]
[1761849789403,1.24845738,107060.0,107050.0,0.02220592]
[1761849789791,1.29134346,107060.0,107050.0,0.02220592]
[1761849789990,0.98134346,107060.0,107050.0,0.02220592]
[1761849790190,1.30670346,107060.0,107050.0,0.02220592]
[1761849790396,1.30670346,107060.0,107050.0,0.08098592]
[1761849790697,0.3854516,107060.0,107050.0,0.27742896]
[1761849790999,0.55910304,107080.0,107070.0,0.05878]
[1761849791187,0.55910304,107080.0,107070.0,0.25522304]
[1761849791188,0.36173,107080.0,107070.0,0.25522304]
[1761849791498,0.37319227,107090.0,107080.0,0.05878]
[1761849791699,0.01239227,107090.0,107080.0,0.05878]
[1761849791899,0.37319227,107090.0,107080.0,0.05878]
[1761849792099,0.39319227,107090.0,107080.0,0.05878]
[1761849792902,0.37319227,107090.0,107080.0,0.05878]
[1761849793104,0.39319227,107090.0,107080.0,0.05878]
[1761849793602,0.01239227,107090.0,107080.0,0.05878]
[1761849793794,0.37319227,107090.0,107080.0,0.05878]
[1761849793993,0.01239227,107090.0,107080.0,0.05878]
[1761849794402,0.00186,107080.0,107070.0,0.05878]
[1761849795100,0.36266,107080.0,107070.0,0.05878]
[1761849795307,0.38266,107080.0,107070.0,0.05878]
[1761849795597,0.00186,107080.0,107070.0,0.05978]
[1761849796006,0.00186,107080.0,107070.0,0.06178]
[1761849797211,0.37319227,107090.0,107080.0,0.04295]
[1761849797505,0.39594235,107090.0,107080.0,0.04295]
[1761849797706,0.41594235,107090.0,107080.0,0.04295]
[1761849798203,0.44594235,107090.0,107080.0,0.04295]
[1761849798606,0.44594235,107090.0,107080.0,0.05576]
[1761849800195,0.41594235,107090.0,107080.0,0.05576]
[1761849800706,0.66141048,107090.0,107080.0,0.05576]
[1761849800907,0.64141048,107090.0,107080.0,0.05576]
[1761849801298,0.03514235,107090.0,107080.0,0.05576]
[1761849801497,0.01239227,107090.0,107080.0,0.05576]
[1761849802200,0.01053227,107090.0,107080.0,0.38108]
[1761849802406,0.43834253,107100.0,107090.0,0.05712]
[1761849802606,0.48117437,107100.0,107090.0,0.05712]
[1761849802997,0.49164436,107100.0,107090.0,0.05712]
[1761849803801,0.73811249,107100.0,107090.0,0.05712]
[1761849804510,0.80811249,107100.0,107090.0,0.05712]
[1761849804697,0.00186,107090.0,107080.0,0.38238]
[1761849804901,0.36266,107090.0,107080.0,0.38238]
[1761849808714,0.62812813,107090.0,107080.0,0.05706]
[1761849808915,0.62812813,107090.0,107080.0,0.38234]
[1761849809104,0.62812813,107090.0,107080.0,0.05706]
[1761849809412,0.95340813,107090.0,107080.0,0.03504]
[1761849809613,0.00186,107080.0,107070.0,0.38347]
[1761849809811,0.26732813,107080.0,107070.0,0.38347]
[1761849810214,0.62812813,107080.0,107070.0,0.38347]
[1761849810813,0.38266,107080.0,107070.0,0.38647]
[1761849811413,0.36266,107080.0,107070.0,0.38647]
[1761849811609,0.38266,107080.0,107070.0,0.38647]
[1761849813007,0.38266,107080.0,107070.0,0.06119]
[1761849814218,0.36266,107080.0,107070.0,0.06119]
[1761849814627,0.38266,107080.0,107070.0,0.06119]
[1761849814924,0.36266,107080.0,107070.0,0.06119]
[1761849816223,0.38266,107080.0,107070.0,0.06119]
[1761849816424,0.36266,107080.0,107070.0,0.06119]
[1761849819727,0.38266,107080.0,107070.0,0.06119]
[1761849820123,0.36266,107080.0,107070.0,0.06119]
[1761849822722,0.38266,107080.0,107070.0,0.06119]
[1761849823125,0.79565773,107080.0,107070.0,0.003]
[1761849823620,1.04565773,107080.0,107070.0,0.003]
[1761849824229,1.14560713,107080.0,107070.0,0.003]
[1761849824425,0.00186,107060.0,107050.0,0.05630592]
[1761849824629,0.81148875,107060.0,107050.0,0.07832592]
[1761849824930,0.7379,107060.0,107050.0,0.05630592]
[1761849825122,0.76074275,107060.0,107050.0,0.03407592]
[1761849825327,1.12089524,107060.0,107050.0,0.02120592]
[1761849826630,0.76074275,107060.0,107050.0,0.02120592]
[1761849826929,1.12154275,107060.0,107050.0,0.02120592]
[1761849828330,1.38696213,107060.0,107050.0,0.02120592]
[1761849828835,1.74711462,107060.0,107050.0,0.02120592]
[1761849829931,1.06172213,107060.0,107050.0,0.07832592]
[1761849830130,1.38696213,107060.0,107050.0,0.07832592]
[1761849830526,1.36411938,107060.0,107050.0,0.05630592]
[1761849830732,1.74707288,107060.0,107050.0,0.07832592]
[1761849831327,1.74707288,107060.0,107050.0,0.05630592]
[1761849831627,1.72427187,107060.0,107050.0,0.05630592]
[1761849832536,1.59427187,107060.0,107050.0,0.05630592]
[1761849832736,1.59427187,107060.0,107050.0,0.07928592]
[1761849833338,1.43065002,107060.0,107050.0,0.07928592]
[1761849835339,1.43065002,107060.0,107050.0,0.05630592]
[1761849835734,1.53059942,107060.0,107050.0,0.03407592]
[1761849835940,1.53059942,107060.0,107050.0,0.02120592]
[1761849836428,1.43065002,107060.0,107050.0,0.02120592]
[1761849836632,1.43065002,107060.0,107050.0,0.05631592]
[1761849837630,1.45345081,107060.0,107050.0,0.05631592]
[1761849838540,1.43065002,107060.0,107050.0,0.07929592]
[1761849838844,1.45345606,107060.0,107050.0,0.07929592]
[1761849839042,1.43065002,107060.0,107050.0,0.07929592]
[1761849839442,1.4534588,107060.0,107050.0,0.07929592]
[1761849840245,1.43065002,107060.0,107050.0,0.07929592]
[1761849842048,1.23411938,107060.0,107050.0,0.07929592]
[1761849842235,1.43065002,107060.0,107050.0,0.07929592]
[1761849842436,1.67345985,107060.0,107050.0,0.07929592]
[1761849843645,1.67345985,107060.0,107050.0,0.05631592]
[1761849845239,1.67345985,107060.0,107050.0,0.07929592]
[1761849845441,1.47692921,107060.0,107050.0,0.07929592]
[1761849845642,1.65065002,107060.0,107050.0,0.07929592]
[1761849845846,1.42065002,107060.0,107050.0,0.07929592]
[1761849846140,1.44345669,107060.0,107050.0,0.07929592]
[1761849847240,0.84168605,107060.0,107050.0,0.07929592]
[1761849847449,1.14692605,107060.0,107050.0,0.07929592]
[1761849847840,0.82168605,107060.0,107050.0,0.27582656]
[1761849848038,0.74626667,107060.0,107050.0,0.27582656]
[1761849848242,0.72346,107060.0,107050.0,0.27582656]
[1761849848445,0.72346,107060.0,107050.0,0.07929592]
[1761849848645,0.76627397,107060.0,107050.0,0.07929592]
[1761849848850,0.96280461,107060.0,107050.0,0.07929592]
[1761849849149,0.96280461,107060.0,107050.0,0.05831592]
[1761849849338,0.96280461,107060.0,107050.0,0.02320592]
[1761849849944,0.96280461,107060.0,107050.0,0.02120592]
[1761849850751,1.28280461,107060.0,107050.0,0.02120592]
[1761849851051,1.38275401,107060.0,107050.0,0.02120592]
[1761849851240,1.28280461,107060.0,107050.0,0.02120592]
[1761849851743,1.35909064,107060.0,107050.0,0.02120592]
[1761849853448,1.38403498,107060.0,107050.0,0.02120592]
[1761849853654,1.38403498,107060.0,107050.0,0.07929592]
[1761849854044,1.35909064,107060.0,107050.0,0.07929592]
[1761849854240,1.38403498,107060.0,107050.0,0.07929592]
[1761849854852,1.38403498,107060.0,107050.0,0.05631592]
[1761849856052,1.35909064,107060.0,107050.0,0.05631592]
[1761849856845,1.35909064,107060.0,107050.0,0.02120592]
[1761849857648,1.38403498,107060.0,107050.0,0.02120592]
[1761849858748,0.00093,107040.0,107030.0,0.03475]
[1761849858954,0.21839064,107040.0,107030.0,0.0569]
[1761849859650,0.57919064,107040.0,107030.0,0.0569]
[1761849859848,0.60221664,107040.0,107030.0,0.0569]
[1761849860045,0.61266194,107040.0,107030.0,0.0569]
[1761849860553,0.61266194,107040.0,107030.0,0.0599]
[1761849860755,0.61266194,107040.0,107030.0,0.0639]
[1761849862659,0.4161313,107040.0,107030.0,0.0639]
[1761849862956,0.58963594,107040.0,107030.0,0.0639]
[1761849863553,0.6126529,107040.0,107030.0,0.0639]
[1761849863950,1.22913294,107040.0,107030.0,0.007]
[1761849864356,1.23193294,107040.0,107030.0,0.007]
[1761849864858,1.25407728,107040.0,107030.0,0.007]
[1761849865455,1.22913294,107040.0,107030.0,0.007]
[1761849865652,1.25687728,107040.0,107030.0,0.007]
[1761849865853,1.25407728,107040.0,107030.0,0.007]
[1761849866559,1.22913294,107040.0,107030.0,0.007]
[1761849868950,1.82913294,107040.0,107030.0,0.007]
[1761849870262,0.00186,107010.0,107000.0,0.05812]
[1761849870455,0.21839064,107010.0,107000.0,0.05812]
[1761849871360,0.21839064,107010.0,107000.0,0.06712]
[1761849871361,0.21939064,107010.0,107000.0,0.06712]
[1761849872462,0.58019064,107010.0,107000.0,0.06712]
[1761849872651,0.38466,107010.0,107000.0,0.07212]
[1761849873059,0.38366,107010.0,107000.0,0.05812]
[1761849873558,0.58033063,107010.0,107000.0,0.25479063]
[1761849874957,0.65338565,107010.0,107000.0,0.25479063]
[1761849875258,0.65338565,107010.0,107000.0,0.05812]
[1761849875561,0.68338565,107010.0,107000.0,0.65812]
[1761849875757,0.63338565,107010.0,107000.0,0.85479063]
[1761849875958,0.65338565,107010.0,107000.0,0.85479063]
[1761849876263,0.63338565,107010.0,107000.0,0.85479063]
[1761849876566,0.65338565,107010.0,107000.0,0.65812]
[1761849877757,0.65338565,107010.0,107000.0,0.85479063]
[1761849878065,0.07405502,107010.0,107000.0,1.14493446]
[1761849878265,0.07405502,107010.0,107000.0,0.45146126]
[1761849878565,0.07498502,107010.0,107000.0,0.45146126]
[1761849878768,0.07591502,107010.0,107000.0,0.45146126]
[1761849879256,0.07591502,107010.0,107000.0,0.54493446]
[1761849879756,0.07405502,107010.0,107000.0,0.54773446]
[1761849879952,0.07405502,107010.0,107000.0,1.14773446]
[1761849880264,0.07591502,107010.0,107000.0,1.05426126]
[1761849880858,0.07405502,107010.0,107000.0,0.66092]
[1761849881064,0.07405502,107010.0,107000.0,1.05426126]
[1761849881564,0.07405502,107010.0,107000.0,1.14773446]
[1761849882760,0.07405502,107010.0,107000.0,0.54773446]
[1761849882960,0.001,107010.0,107000.0,1.23369446]
[1761849883159,0.36266,107030.0,107020.0,0.05772]
[1761849883478,0.3608,107030.0,107020.0,0.45106126]
[1761849883659,0.3608,107030.0,107020.0,0.54451696]
[1761849883860,0.43479793,107030.0,107020.0,0.54451696]
[1761849884267,0.07699793,107030.0,107020.0,0.54451696]
[1761849884462,0.07699793,107030.0,107020.0,0.45106126]
[1761849884764,0.08192793,107030.0,107020.0,0.45106126]
[1761849885154,0.08285793,107030.0,107020.0,0.25439063]
[1761849886356,0.08285793,107030.0,107020.0,0.34784683]